[Event "11th LCC Super Blitz 2019"]
[Site "London"]
[Date "2019.12.08"]
[Round "2.1"]
[White "Zulfic, Fedja"]
[Black "Howell, David Wl"]
[Result "0-1"]
[ECO "A40"]
[WhiteElo "2032"]
[BlackElo "2650"]
[Annotator "ChessBase"]
[PlyCount "70"]
[EventDate "2019.12.08"]
[EventType "swiss"]
[EventCountry "ENG"]
[SourceTitle "playchess.com"]
[Source "ChessBase"]
[SourceQuality "1"]
[TimeControl "180+2"]

1. d4 {[%emt 0:00:00]} e6 {[%emt 0:00:04]} 2. Nf3 {[%emt 0:00:01]} b6 {[%emt 0:00:05]} 3. Bf4 {[%emt 0:00:10]} Bb7 {[%emt 0:00:02]} 4. e3 {[%emt 0:00:01]} h6 {[%emt 0:00:04]} 5. h3 {[%emt 0:00:10]} d6 {[%emt 0:00:03]} 6. Nbd2 {[%emt 0:00:05]} Nd7 {[%emt 0:00:01]} 7. Bd3 {[%emt 0:00:05]} Ne7 {[%emt 0:00:02]} 8. e4 {[%emt 0:00:28]} a6 {[%emt 0:00:04]} 9. Qe2 {[%emt 0:00:13]} g6 {[%emt 0:00:02]} 10. O-O {[%emt 0:00:22]} Bg7 {[%emt 0:00:06]} 11. Qe3 {[%emt 0:00:09]} Kf8 {[%emt 0:00:11]} 12. c3 {[%emt 0:00:04]} Kg8 {[%emt 0:00:02]} 13. Nh2 {[%emt 0:00:13]} Qf8 {[%emt 0:00:03]} 14. Rae1 {[%emt 0:00:05]} Re8 {[%emt 0:00:02]} 15. Bg3 {[%emt 0:00:25]} b5 {[%emt 0:00:23]} 16. f4 {[%emt 0:00:01]} f5 {[%emt 0:00:01]} 17. exf5 {[%emt 0:00:08]} Nxf5 {[%emt 0:00:02]} 18. Bxf5 {[%emt 0:00:11]} gxf5 {[%emt 0:00:07]} 19. Bh4 {[%emt 0:00:03]} Nb6 {[%emt 0:00:12]} 20. Qg3 {[%emt 0:00:07]} Kh7 {[%emt 0:00:03]} 21. Re2 {[%emt 0:00:11]} Rg8 {[%emt 0:00:03]} 22. Qd3 {[%emt 0:00:07]} Kh8 {[%emt 0:00:17]} 23. Rfe1 {[%emt 0:00:01]} Qf7 {[%emt 0:00:01]} 24. Ndf1 {[%emt 0:00:03]} Qh5 {[%emt 0:00:10]} 25. Bg3 {[%emt 0:00:13]} Qg6 {[%emt 0:00:08]} 26. Nf3 {[%emt 0:00:01]} Be4 {[%emt 0:00:11]} 27. Qe3 {[%emt 0:00:11]} Bf6 {[%emt 0:00:07]} 28. Qf2 {[%emt 0:00:01]} Rg7 {[%emt 0:00:09]} 29. Nh4 {[%emt 0:00:02]} Qh5 {[%emt 0:00:08]} 30. Rxe4 {[%emt 0:00:01]} fxe4 {[%emt 0:00:01]} 31. Rxe4 {[%emt 0:00:06]} Rxg3 {[%emt 0:00:06]} 32. Qxg3 {[%emt 0:00:02]} Bxh4 {[%emt 0:00:04]} 33. Qe3 {[%emt 0:00:02]} Nd5 {[%emt 0:00:01]} 34. Qd3 {[%emt 0:00:02]} Qg6 {[%emt 0:00:05]} 35. f5 {[%emt 0:00:03]} Qxf5 {[%emt 0:00:02]} 0-1

[Event "11th LCC Super Blitz 2019"]
[Site "London"]
[Date "2019.12.08"]
[Round "2.2"]
[White "Aravindh, Chithambaram Vr"]
[Black "Iyengar, Ilya"]
[Result "1-0"]
[ECO "E63"]
[WhiteElo "2560"]
[BlackElo "1984"]
[Annotator "ChessBase"]
[PlyCount "81"]
[EventDate "2019.12.08"]
[EventType "swiss"]
[EventCountry "ENG"]
[SourceTitle "playchess.com"]
[Source "ChessBase"]
[SourceQuality "1"]
[TimeControl "180+2"]

1. d4 {[%emt 0:00:00]} Nf6 {[%emt 0:00:00]} 2. c4 {[%emt 0:00:01]} g6 {[%emt 0:00:01]} 3. Nf3 {[%emt 0:00:03]} Bg7 {[%emt 0:00:02]} 4. g3 {[%emt 0:00:02]} O-O {[%emt 0:00:02]} 5. Bg2 {[%emt 0:00:01]} d6 {[%emt 0:00:01]} 6. O-O {[%emt 0:00:03]} Nc6 {[%emt 0:00:02]} 7. Nc3 {[%emt 0:00:02]} a6 {[%emt 0:00:02]} 8. Bf4 {[%emt 0:00:05]} Rb8 {[%emt 0:00:05]} 9. Rc1 {[%emt 0:00:02]} Bf5 {[%emt 0:00:10]} 10. d5 {[%emt 0:00:13]} Na5 {[%emt 0:00:17]} 11. b3 {[%emt 0:00:05]} c5 {[%emt 0:00:06]} 12. dxc6 {[%emt 0:00:07]} Nxc6 {[%emt 0:00:08]} 13. Qd2 {[%emt 0:00:14]} Ne4 {[%emt 0:00:39]} 14. Nxe4 {[%emt 0:00:03]} Bxe4 {[%emt 0:00:01]} 15. Rfd1 {[%emt 0:00:08]} Rc8 {[%emt 0:00:17]} 16. Bh6 {[%emt 0:00:09]} Qa5 {[%emt 0:00:18]} 17. Qxa5 {[%emt 0:00:24]} Nxa5 {[%emt 0:00:01]} 18. Bxg7 {[%emt 0:00:02]} Kxg7 {[%emt 0:00:01]} 19. Nd4 {[%emt 0:00:07]} Bxg2 {[%emt 0:00:06]} 20. Kxg2 {[%emt 0:00:01]} Nc6 {[%emt 0:00:09]} 21. Nc2 {[%emt 0:00:09]} Kf6 {[%emt 0:00:12]} 22. Ne3 {[%emt 0:00:04]} Rfd8 {[%emt 0:00:31]} 23. Rd2 {[%emt 0:00:09]} Kg7 {[%emt 0:00:14]} 24. Nd5 {[%emt 0:00:06]} f6 {[%emt 0:00:09]} 25. f4 {[%emt 0:00:10]} Kf7 {[%emt 0:00:05]} 26. Nb6 {[%emt 0:00:07]} Rc7 {[%emt 0:00:02]} 27. Rcd1 {[%emt 0:00:02]} Re8 {[%emt 0:00:03]} 28. e3 {[%emt 0:00:14]} Nb8 {[%emt 0:00:03]} 29. Kf3 {[%emt 0:00:04]} Nd7 {[%emt 0:00:01]} 30. Nd5 {[%emt 0:00:07]} Rcc8 {[%emt 0:00:02]} 31. g4 {[%emt 0:00:05]} Nc5 {[%emt 0:00:02]} 32. h4 {[%emt 0:00:12]} Red8 {[%emt 0:00:04]} 33. Nc3 {[%emt 0:00:08]} Re8 {[%emt 0:00:03]} 34. Rh1 {[%emt 0:00:04]} Ne6 {[%emt 0:00:05]} 35. Nd5 {[%emt 0:00:04]} Nc5 {[%emt 0:00:03]} 36. h5 {[%emt 0:00:01]} Kg7 {[%emt 0:00:02]} 37. hxg6 {[%emt 0:00:03]} hxg6 {[%emt 0:00:01]} 38. Rdh2 {[%emt 0:00:01]} Kf7 {[%emt 0:00:03]} 39. f5 {[%emt 0:00:09]} gxf5 {[%emt 0:00:01]} 40. Rh7+ {[%emt 0:00:01]} Kg6 {[%emt 0:00:03]} 41. Nf4+ {[%emt 0:00:04]} 1-0

[Event "11th LCC Super Blitz 2019"]
[Site "London"]
[Date "2019.12.08"]
[Round "2.2"]
[White "Pert, Nicholas"]
[Black "Pappelis, Dimitrios"]
[Result "1-0"]
[ECO "D32"]
[WhiteElo "2560"]
[BlackElo "2160"]
[Annotator "ChessBase"]
[PlyCount "71"]
[EventDate "2019.12.08"]
[EventType "swiss"]
[EventCountry "ENG"]
[SourceTitle "playchess.com"]
[Source "ChessBase"]
[SourceQuality "1"]
[TimeControl "180+2"]

1. d4 {[%emt 0:00:00]} d5 {[%emt 0:00:00]} 2. c4 {[%emt 0:00:00]} e6 {[%emt 0:00:00]} 3. Nf3 {[%emt 0:00:00]} c5 {[%emt 0:00:00]} 4. cxd5 exd5 {[%emt 0:00:01]} 5. Nc3 {[%emt 0:00:03]} Nc6 {[%emt 0:00:01]} 6. dxc5 {[%emt 0:00:02]} Bxc5 {[%emt 0:00:03]} 7. Qxd5 {[%emt 0:00:11]} Qe7 {[%emt 0:00:20]} 8. Bg5 {[%emt 0:00:15]} f6 {[%emt 0:00:28]} 9. Bf4 {[%emt 0:00:09]} Be6 {[%emt 0:00:01]} 10. Qe4 {[%emt 0:00:06]} f5 {[%emt 0:00:12]} 11. Qa4 {[%emt 0:00:05]} Nf6 {[%emt 0:00:04]} 12. e3 {[%emt 0:00:03]} O-O {[%emt 0:00:06]} 13. Bc4 {[%emt 0:00:02]} Rac8 {[%emt 0:00:09]} 14. Bxe6+ {[%emt 0:00:19]} Qxe6 {[%emt 0:00:01]} 15. O-O {[%emt 0:00:02]} Ne4 {[%emt 0:00:20]} 16. Rac1 {[%emt 0:00:08]} Bb6 {[%emt 0:00:12]} 17. Nxe4 {[%emt 0:00:13]} Qxe4 {[%emt 0:00:26]} 18. Qxe4 {[%emt 0:00:01]} fxe4 {[%emt 0:00:02]} 19. Nd2 {[%emt 0:00:02]} Rfe8 {[%emt 0:00:05]} 20. Rc4 {[%emt 0:00:03]} Na5 {[%emt 0:00:12]} 21. Rxc8 {[%emt 0:00:22]} Rxc8 {[%emt 0:00:01]} 22. Nxe4 {[%emt 0:00:08]} Rc2 {[%emt 0:00:02]} 23. b4 {[%emt 0:00:01]} Nc6 {[%emt 0:00:25]} 24. b5 {[%emt 0:00:01]} Nb4 {[%emt 0:00:01]} 25. a3 {[%emt 0:00:05]} Nd3 {[%emt 0:00:02]} 26. Bg3 {[%emt 0:00:05]} h6 {[%emt 0:00:08]} 27. h4 {[%emt 0:00:01]} Ra2 {[%emt 0:00:05]} 28. Nd6 {[%emt 0:00:04]} Rxa3 {[%emt 0:00:05]} 29. Nxb7 {[%emt 0:00:02]} Rb3 {[%emt 0:00:07]} 30. Rd1 {[%emt 0:00:07]} Nb2 {[%emt 0:00:04]} 31. Rd5 {[%emt 0:00:02]} Nc4 {[%emt 0:00:04]} 32. Nd6 {[%emt 0:00:03]} Rb1+ {[%emt 0:00:07]} 33. Kh2 {[%emt 0:00:01]} Nb2 {[%emt 0:00:01]} 34. Nc8 {[%emt 0:00:07]} Rf1 {[%emt 0:00:06]} 35. Nxb6 {[%emt 0:00:04]} axb6 {[%emt 0:00:00]} 36. Rd6 {[%emt 0:00:04]} 1-0

[Event "11th LCC Super Blitz 2019"]
[Site "London"]
[Date "2019.12.08"]
[Round "2.2"]
[White "Nettleton, Charlie B"]
[Black "Rowson, Jonathan"]
[Result "0-1"]
[ECO "B12"]
[WhiteElo "2021"]
[BlackElo "2561"]
[Annotator "ChessBase"]
[PlyCount "64"]
[EventDate "2019.12.08"]
[EventType "swiss"]
[EventCountry "ENG"]
[SourceTitle "playchess.com"]
[Source "ChessBase"]
[SourceQuality "1"]
[TimeControl "180+2"]

1. e4 {[%emt 0:00:00]} c6 {[%emt 0:00:00]} 2. d4 {[%emt 0:00:01]} d5 {[%emt 0:00:00]} 3. e5 {[%emt 0:00:01]} Bf5 {[%emt 0:00:09]} 4. h4 {[%emt 0:00:02]} h5 {[%emt 0:00:04]} 5. Bg5 {[%emt 0:00:02]} Qb6 {[%emt 0:00:03]} 6. Bd3 {[%emt 0:00:02]} Bxd3 {[%emt 0:00:08]} 7. Qxd3 {[%emt 0:00:01]} e6 {[%emt 0:00:17]} 8. Nd2 {[%emt 0:00:23]} Qa6 {[%emt 0:00:02]} 9. Ne2 {[%emt 0:00:09]} Qxd3 {[%emt 0:00:08]} 10. cxd3 {[%emt 0:00:01]} Ne7 {[%emt 0:00:01]} 11. Bxe7 {[%emt 0:00:11]} Bxe7 {[%emt 0:00:02]} 12. Rc1 {[%emt 0:00:14]} Na6 {[%emt 0:00:04]} 13. a3 {[%emt 0:00:01]} c5 {[%emt 0:00:08]} 14. dxc5 {[%emt 0:00:03]} Nxc5 {[%emt 0:00:01]} 15. Nf4 {[%emt 0:00:13]} Kd7 {[%emt 0:00:02]} 16. d4 {[%emt 0:00:02]} Na6 {[%emt 0:00:14]} 17. Nd3 {[%emt 0:00:04]} Rac8 {[%emt 0:00:05]} 18. Ke2 Nb8 {[%emt 0:00:05]} 19. g3 {[%emt 0:00:07]} Nc6 {[%emt 0:00:03]} 20. Ke3 {[%emt 0:00:20]} b6 {[%emt 0:00:05]} 21. b4 {[%emt 0:00:05]} Rc7 {[%emt 0:00:06]} 22. Nb3 {[%emt 0:00:11]} Rhc8 {[%emt 0:00:03]} 23. b5 {[%emt 0:00:01]} Nd8 {[%emt 0:00:09]} 24. Rxc7+ {[%emt 0:00:10]} Rxc7 {[%emt 0:00:01]} 25. a4 {[%emt 0:00:11]} Rc3 {[%emt 0:00:03]} 26. Nd2 {[%emt 0:00:05]} Ra3 {[%emt 0:00:06]} 27. Nb1 {[%emt 0:00:31]} Rxa4 {[%emt 0:00:04]} 28. Nc3 {[%emt 0:00:02]} Ra3 {[%emt 0:00:03]} 29. Rc1 {[%emt 0:00:01]} Nb7 {[%emt 0:00:05]} 30. f4 {[%emt 0:00:10]} g6 {[%emt 0:00:01]} 31. Kd2 {[%emt 0:00:05]} Na5 {[%emt 0:00:01]} 32. Nb2 {[%emt 0:00:02]} Nb3+ {[%emt 0:00:02]} 0-1

[Event "11th LCC Super Blitz 2019"]
[Site "London"]
[Date "2019.12.08"]
[Round "2.3"]
[White "Maze, Sebastien"]
[Black "Stamatopoulos, Apostolos"]
[Result "1-0"]
[ECO "B56"]
[WhiteElo "2549"]
[BlackElo "1782"]
[Annotator "ChessBase"]
[PlyCount "61"]
[EventDate "2019.12.08"]
[EventType "swiss"]
[EventCountry "ENG"]
[SourceTitle "playchess.com"]
[Source "ChessBase"]
[SourceQuality "1"]
[TimeControl "180+2"]

1. e4 {[%emt 0:01:16]} c5 2. Nf3 d6 {[%emt 0:00:01]} 3. Nc3 Nc6 {[%emt 0:00:03]} 4. Bb5 {[%emt 0:00:02]} Bd7 {[%emt 0:00:06]} 5. O-O {[%emt 0:00:01]} Nf6 {[%emt 0:00:12]} 6. Re1 e6 {[%emt 0:00:04]} 7. d4 {[%emt 0:00:03]} cxd4 {[%emt 0:00:01]} 8. Nxd4 {[%emt 0:00:02]} a6 {[%emt 0:00:09]} 9. Bf1 {[%emt 0:00:03]} Be7 {[%emt 0:00:08]} 10. a4 {[%emt 0:00:05]} b6 {[%emt 0:00:07]} 11. Nb3 {[%emt 0:00:05]} O-O {[%emt 0:00:07]} 12. Bf4 {[%emt 0:00:04]} Qc7 {[%emt 0:00:32]} 13. Qd2 {[%emt 0:00:06]} Nh5 {[%emt 0:00:09]} 14. Bg5 {[%emt 0:00:02]} f6 {[%emt 0:00:38]} 15. Be3 {[%emt 0:00:09]} Ne5 {[%emt 0:00:26]} 16. Qe2 {[%emt 0:00:02]} g6 {[%emt 0:00:06]} 17. f4 {[%emt 0:00:02]} Nf7 {[%emt 0:00:14]} 18. Qf2 {[%emt 0:00:02]} Rab8 {[%emt 0:00:21]} 19. Bxa6 {[%emt 0:00:03]} e5 20. Nd5 {[%emt 0:00:02]} Qd8 {[%emt 0:00:03]} 21. Bxb6 {[%emt 0:00:07]} Rxb6 {[%emt 0:00:05]} 22. Qxb6 {[%emt 0:00:01]} Qe8 {[%emt 0:00:03]} 23. Bb5 {[%emt 0:00:09]} Nxf4 {[%emt 0:00:05]} 24. Rad1 {[%emt 0:00:06]} Nxd5 {[%emt 0:00:03]} 25. Rxd5 {[%emt 0:00:02]} Bxb5 {[%emt 0:00:04]} 26. axb5 {[%emt 0:00:04]} Nd8 {[%emt 0:00:05]} 27. Na5 {[%emt 0:00:05]} f5 {[%emt 0:00:07]} 28. Nc6 {[%emt 0:00:03]} Bg5 {[%emt 0:00:04]} 29. Nxd8 {[%emt 0:00:03]} Bxd8 {[%emt 0:00:02]} 30. Qxd6 {[%emt 0:00:03]} Qxb5 {[%emt 0:00:05]} 31. Rxb5 {[%emt 0:00:01]} 1-0

[Event "11th LCC Super Blitz 2019"]
[Site "London"]
[Date "2019.12.08"]
[Round "2.3"]
[White "Rahman, Asad"]
[Black "Grover, Sahaj"]
[Result "0-1"]
[ECO "C01"]
[WhiteElo "1923"]
[BlackElo "2486"]
[Annotator "ChessBase"]
[PlyCount "67"]
[EventDate "2019.12.08"]
[EventType "swiss"]
[EventCountry "ENG"]
[SourceTitle "playchess.com"]
[Source "ChessBase"]
[SourceQuality "1"]
[TimeControl "180+2"]

1. e4 {[%emt 0:00:00]} e6 {[%emt 0:00:00]} 2. d4 {[%emt 0:00:02]} d5 {[%emt 0:00:02]} 3. exd5 {[%emt 0:00:02]} exd5 {[%emt 0:00:02]} 4. Nf3 {[%emt 0:00:02]} Bd6 {[%emt 0:00:02]} 5. Bd3 {[%emt 0:00:02]} Ne7 {[%emt 0:00:02]} 6. h3 {[%emt 0:00:02]} Nbc6 {[%emt 0:00:02]} 7. O-O {[%emt 0:00:02]} Bf5 {[%emt 0:00:02]} 8. Re1 {[%emt 0:00:02]} Qd7 {[%emt 0:00:02]} 9. c4 {[%emt 0:00:02]} Bxd3 {[%emt 0:00:02]} 10. Qxd3 {[%emt 0:00:02]} dxc4 {[%emt 0:00:02]} 11. Qxc4 {[%emt 0:00:02]} O-O {[%emt 0:00:02]} 12. Nc3 {[%emt 0:00:02]} Rad8 {[%emt 0:00:02]} 13. Bg5 {[%emt 0:00:02]} h6 {[%emt 0:00:02]} 14. Be3 {[%emt 0:00:02]} Nf5 {[%emt 0:00:02]} 15. Rad1 {[%emt 0:00:02]} Rfe8 {[%emt 0:00:02]} 16. d5 {[%emt 0:00:02]} Nxe3 {[%emt 0:00:02]} 17. fxe3 {[%emt 0:00:02]} Ne5 {[%emt 0:00:02]} 18. Nxe5 {[%emt 0:00:02]} Rxe5 {[%emt 0:00:02]} 19. Nb5 {[%emt 0:00:02]} Rg5 {[%emt 0:00:02]} 20. Nxd6 {[%emt 0:00:02]} Qxh3 {[%emt 0:00:02]} 21. Qe4 {[%emt 0:00:02]} Rxd6 {[%emt 0:00:14]} 22. Rd2 {[%emt 0:00:15]} Rdg6 {[%emt 0:00:15]} 23. Ree2 {[%emt 0:00:11]} Rh5 {[%emt 0:00:08]} 24. Kf1 {[%emt 0:00:48]} Qh1+ {[%emt 0:00:04]} 25. Kf2 {[%emt 0:00:00]} Rf6+ {[%emt 0:00:02]} 26. Kg3 {[%emt 0:00:02]} Rg5+ {[%emt 0:00:01]} 27. Qg4 {[%emt 0:00:02]} Rxg4+ {[%emt 0:00:02]} 28. Kxg4 {[%emt 0:00:01]} h5+ {[%emt 0:00:03]} 29. Kg5 {[%emt 0:00:02]} Qh2 {[%emt 0:00:09]} 30. g4 {[%emt 0:00:04]} Rg6+ {[%emt 0:00:05]} 31. Kf5 {[%emt 0:00:04]} Qh3 {[%emt 0:00:06]} 32. Rg2 {[%emt 0:00:04]} Rxg4 {[%emt 0:00:02]} 33. Ke5 {[%emt 0:00:01]} Rxg2 {[%emt 0:00:02]} 34. Kd4 {[%emt 0:00:03]} 0-1

[Event "11th LCC Super Blitz 2019"]
[Site "London"]
[Date "2019.12.08"]
[Round "2.3"]
[White "Kennedy, Craig"]
[Black "Arkell, Keith C"]
[Result "0-1"]
[ECO "B12"]
[WhiteElo "1899"]
[BlackElo "2453"]
[Annotator "ChessBase"]
[PlyCount "44"]
[EventDate "2019.12.08"]
[EventType "swiss"]
[EventCountry "ENG"]
[SourceTitle "playchess.com"]
[Source "ChessBase"]
[SourceQuality "1"]
[TimeControl "180+2"]

1. e4 {[%emt 0:00:00]} c6 {[%emt 0:00:00]} 2. d4 {[%emt 0:00:03]} d5 {[%emt 0:00:00]} 3. e5 {[%emt 0:00:01]} c5 {[%emt 0:00:01]} 4. Nf3 {[%emt 0:00:05]} cxd4 {[%emt 0:00:01]} 5. Bd3 {[%emt 0:00:07]} Nc6 {[%emt 0:00:01]} 6. O-O {[%emt 0:00:02]} Bg4 {[%emt 0:00:02]} 7. Nbd2 {[%emt 0:00:06]} e6 {[%emt 0:00:01]} 8. Re1 {[%emt 0:00:04]} Nge7 {[%emt 0:00:02]} 9. h3 {[%emt 0:00:02]} Bh5 {[%emt 0:00:03]} 10. Nb3 {[%emt 0:00:07]} Qb6 {[%emt 0:00:03]} 11. g4 {[%emt 0:00:15]} Bg6 {[%emt 0:00:01]} 12. Nbxd4 {[%emt 0:00:16]} Bxd3 {[%emt 0:00:06]} 13. Qxd3 {[%emt 0:00:02]} h5 {[%emt 0:00:12]} 14. Nb5 {[%emt 0:00:12]} Ng6 {[%emt 0:00:06]} 15. Nd6+ {[%emt 0:00:09]} Bxd6 {[%emt 0:00:02]} 16. exd6 {[%emt 0:00:03]} hxg4 {[%emt 0:00:05]} 17. Rxe6+ {[%emt 0:00:37]} Kd7 {[%emt 0:00:17]} 18. Rxg6 {[%emt 0:00:37]} fxg6 {[%emt 0:00:20]} 19. Ng5 {[%emt 0:00:03]} Ne5 {[%emt 0:00:14]} 20. Qxd5 {[%emt 0:00:04]} Rae8 {[%emt 0:00:20]} 21. Be3 {[%emt 0:00:08]} Qc6 {[%emt 0:00:01]} 22. Qa5 {[%emt 0:00:19]} gxh3 {[%emt 0:00:21]} 0-1

[Event "11th LCC Super Blitz 2019"]
[Site "London"]
[Date "2019.12.08"]
[Round "2.4"]
[White "Beinoras, Mindaugas"]
[Black "Nunn, Petra"]
[Result "1-0"]
[ECO "D00"]
[WhiteElo "2401"]
[BlackElo "1908"]
[Annotator "NA"]
[PlyCount "31"]
[EventDate "2019.12.08"]
[EventType "swiss"]
[EventCountry "ENG"]
[SourceTitle "playchess.com"]
[Source "ChessBase"]
[SourceQuality "1"]
[TimeControl "180+2"]

1. d4 {[%emt 0:00:00]} d5 {[%emt 0:00:00]} 2. Bg5 {[%emt 0:00:02]} h6 {[%emt 0:00:06]} 3. Bh4 {[%emt 0:00:01]} c5 {[%emt 0:00:01]} 4. e3 {[%emt 0:00:07]} Nc6 {[%emt 0:00:15]} 5. c3 {[%emt 0:00:06]} Qb6 {[%emt 0:00:14]} 6. Qb3 {[%emt 0:00:10]} c4 {[%emt 0:00:03]} 7. Qxb6 {[%emt 0:00:09]} axb6 {[%emt 0:00:01]} 8. Na3 {[%emt 0:00:02]} Bf5 {[%emt 0:00:23]} 9. Nb5 {[%emt 0:00:15]} O-O-O {[%emt 0:00:04]} 10. Nf3 {[%emt 0:00:09]} f6 {[%emt 0:00:47]} 11. Bg3 {[%emt 0:00:12]} g5 {[%emt 0:00:08]} 12. b3 {[%emt 0:00:05]} Be6 {[%emt 0:00:08]} 13. bxc4 dxc4 {[%emt 0:00:01]} 14. e4 {[%emt 0:00:10]} Na5 {[%emt 0:00:07]} 15. d5 {[%emt 0:00:07]} Bd7 {[%emt 0:00:01]} 16. Na7# {[%emt 0:00:01]} 1-0

[Event "11th LCC Super Blitz 2019"]
[Site "London"]
[Date "2019.12.08"]
[Round "2.4"]
[White "Mortazavi, Ali"]
[Black "Bird, Joel"]
[Result "0-1"]
[ECO "B10"]
[WhiteElo "2333"]
[BlackElo "2009"]
[Annotator "NA"]
[PlyCount "60"]
[EventDate "2019.12.08"]
[EventType "swiss"]
[EventCountry "ENG"]
[SourceTitle "playchess.com"]
[Source "ChessBase"]
[SourceQuality "1"]
[TimeControl "180+2"]

1. Nf3 {[%emt 0:00:00]} d5 {[%emt 0:00:00]} 2. g3 {[%emt 0:00:00]} Nf6 {[%emt 0:00:00]} 3. Bg2 {[%emt 0:00:01]} g6 {[%emt 0:00:01]} 4. O-O {[%emt 0:00:01]} Bg7 {[%emt 0:00:01]} 5. d3 {[%emt 0:00:02]} O-O {[%emt 0:00:02]} 6. Nbd2 {[%emt 0:00:01]} Nbd7 {[%emt 0:00:07]} 7. e4 {[%emt 0:00:01]} e5 {[%emt 0:00:10]} 8. exd5 {[%emt 0:00:06]} Nxd5 {[%emt 0:00:02]} 9. Re1 {[%emt 0:00:01]} c6 {[%emt 0:00:25]} 10. Nc4 {[%emt 0:00:03]} Qc7 {[%emt 0:00:12]} 11. a4 {[%emt 0:00:01]} Re8 {[%emt 0:00:07]} 12. c3 {[%emt 0:00:01]} N7b6 {[%emt 0:00:10]} 13. a5 {[%emt 0:00:22]} Nxc4 14. dxc4 {[%emt 0:00:01]} Ne7 {[%emt 0:00:24]} 15. a6 {[%emt 0:00:01]} Nf5 {[%emt 0:00:12]} 16. axb7 Bxb7 {[%emt 0:00:01]} 17. c5 {[%emt 0:00:19]} a5 {[%emt 0:00:04]} 18. Ng5 {[%emt 0:00:26]} Qe7 {[%emt 0:00:09]} 19. Qb3 {[%emt 0:00:32]} Rab8 {[%emt 0:00:07]} 20. Rxa5 {[%emt 0:00:07]} Ba6 {[%emt 0:00:11]} 21. Qa3 {[%emt 0:00:04]} Bb5 {[%emt 0:00:14]} 22. Ne4 {[%emt 0:00:05]} Qe6 {[%emt 0:00:21]} 23. Ng5 {[%emt 0:00:15]} Qc4 {[%emt 0:00:08]} 24. Bf1 {[%emt 0:00:11]} Qd5 {[%emt 0:00:08]} 25. Bg2 {[%emt 0:00:05]} Qc4 {[%emt 0:00:06]} 26. Ne4 {[%emt 0:00:08]} h5 {[%emt 0:00:07]} 27. b3 {[%emt 0:00:13]} Qd3 {[%emt 0:00:15]} 28. c4 {[%emt 0:00:01]} Bxc4 {[%emt 0:00:02]} 29. bxc4 {[%emt 0:00:03]} Rb1 {[%emt 0:00:03]} 30. Qxd3 {[%emt 0:00:02]} Rb2 {[%emt 0:00:04]} 0-1

[Event "11th LCC Super Blitz 2019"]
[Site "London"]
[Date "2019.12.08"]
[Round "2.4"]
[White "Tanmay Chopra"]
[Black "Wallace, John Paul"]
[Result "0-1"]
[ECO "B84"]
[WhiteElo "2100"]
[BlackElo "2344"]
[Annotator "NA"]
[PlyCount "62"]
[EventDate "2019.12.08"]
[EventType "swiss"]
[EventCountry "ENG"]
[SourceTitle "playchess.com"]
[Source "ChessBase"]
[SourceQuality "1"]
[TimeControl "180+2"]

1. e4 {[%emt 0:00:00]} c5 {[%emt 0:00:00]} 2. Nf3 {[%emt 0:00:00]} d6 {[%emt 0:00:00]} 3. d4 {[%emt 0:00:01]} cxd4 {[%emt 0:00:00]} 4. Nxd4 {[%emt 0:00:01]} Nf6 {[%emt 0:00:01]} 5. Nc3 {[%emt 0:00:01]} a6 {[%emt 0:00:01]} 6. Be3 {[%emt 0:00:01]} e6 {[%emt 0:00:01]} 7. Be2 {[%emt 0:00:23]} Be7 {[%emt 0:00:03]} 8. O-O {[%emt 0:00:02]} O-O {[%emt 0:00:02]} 9. f4 {[%emt 0:00:01]} Qc7 {[%emt 0:00:01]} 10. Qe1 {[%emt 0:00:08]} b5 {[%emt 0:00:05]} 11. a3 {[%emt 0:00:47]} Bb7 {[%emt 0:00:01]} 12. Bd3 {[%emt 0:00:00]} Nbd7 {[%emt 0:00:01]} 13. Qg3 {[%emt 0:00:01]} Nc5 {[%emt 0:00:18]} 14. e5 {[%emt 0:00:25]} dxe5 {[%emt 0:00:19]} 15. fxe5 {[%emt 0:00:01]} Nfd7 {[%emt 0:00:02]} 16. Bf4 {[%emt 0:00:27]} Nxd3 {[%emt 0:00:09]} 17. cxd3 {[%emt 0:00:03]} Bc5 {[%emt 0:00:36]} 18. Nce2 {[%emt 0:00:01]} Kh8 {[%emt 0:00:09]} 19. Kh1 {[%emt 0:00:04]} Ba7 {[%emt 0:00:33]} 20. Nf3 {[%emt 0:00:01]} Qc2 {[%emt 0:00:11]} 21. Neg1 {[%emt 0:00:30]} Nc5 {[%emt 0:00:09]} 22. Ng5 {[%emt 0:00:21]} Qxd3 {[%emt 0:00:06]} 23. N1f3 {[%emt 0:00:03]} Ne4 {[%emt 0:00:22]} 24. Qh3 {[%emt 0:00:01]} Nxg5 {[%emt 0:00:01]} 25. Nxg5 {[%emt 0:00:01]} Qxh3 {[%emt 0:00:02]} 26. Nxh3 {[%emt 0:00:02]} h6 {[%emt 0:00:02]} 27. Rac1 {[%emt 0:00:02]} Rac8 {[%emt 0:00:01]} 28. Nf2 {[%emt 0:00:05]} Rxc1 {[%emt 0:00:02]} 29. Bxc1 {[%emt 0:00:02]} Rc8 {[%emt 0:00:02]} 30. Nd3 {[%emt 0:00:06]} Kg8 {[%emt 0:00:02]} 31. b4 {[%emt 0:00:03]} Rc2 {[%emt 0:00:01]} 0-1